[Event "*** Titled Tuesday Blitz"]
[Site "Chess.com"]
[Date "2021.04.06"]
[Round "6"]
[White "Nemsko"]
[Black "zala02"]
[Result "1-0"]
[WhiteElo "2305"]
[BlackElo "2143"]
[TimeControl "180+1"]
[EndTime "11:08:14 PDT"]
[Termination "Nemsko won by checkmate"]

1. e4 {[%clk 0:03:00.9]} 1... e5 {[%clk 0:02:59.5]} 2. Nf3 {[%clk 0:03:01.1]}
2... Nc6 {[%clk 0:02:59.4]} 3. Bb5 {[%clk 0:03:01.2]} 3... a6 {[%clk 0:02:59.5]}
4. Ba4 {[%clk 0:03:01.5]} 4... Nf6 {[%clk 0:02:59.7]} 5. O-O {[%clk 0:02:55.9]}
5... b5 {[%clk 0:02:59.4]} 6. Bb3 {[%clk 0:02:55.6]} 6... Be7 {[%clk 0:02:58.6]}
7. Re1 {[%clk 0:02:55.5]} 7... d6 {[%clk 0:02:58.4]} 8. c3 {[%clk 0:02:54.5]}
8... O-O {[%clk 0:02:57.8]} 9. h3 {[%clk 0:02:53.3]} 9... Nb8 {[%clk 0:02:57.5]}
10. d4 {[%clk 0:02:53.5]} 10... Nbd7 {[%clk 0:02:57.3]} 11. Nbd2 {[%clk
0:02:48.1]} 11... Bb7 {[%clk 0:02:57.2]} 12. Bc2 {[%clk 0:02:45.6]} 12... Re8
{[%clk 0:02:57]} 13. Nf1 {[%clk 0:02:45]} 13... Bf8 {[%clk 0:02:56.9]} 14. Ng3
{[%clk 0:02:43.6]} 14... g6 {[%clk 0:02:57]} 15. Bg5 {[%clk 0:02:37.7]} 15... h6
{[%clk 0:02:51.2]} 16. Bd2 {[%clk 0:02:33.5]} 16... Bg7 {[%clk 0:02:50.5]} 17.
Qc1 {[%clk 0:02:26.5]} 17... Kh7 {[%clk 0:02:50.2]} 18. b3 {[%clk 0:02:18.7]}
18... Nb6 {[%clk 0:02:33.3]} 19. Bd3 {[%clk 0:02:14.1]} 19... c5 {[%clk
0:02:20.3]} 20. d5 {[%clk 0:02:13.4]} 20... c4 {[%clk 0:02:19.2]} 21. bxc4
{[%clk 0:02:13.6]} 21... bxc4 {[%clk 0:02:05.6]} 22. Bc2 {[%clk 0:02:12.5]}
22... Nfd7 {[%clk 0:02:05.2]} 23. Nh2 {[%clk 0:02:08.9]} 23... Nc5 {[%clk
0:02:04.3]} 24. Ng4 {[%clk 0:02:06.8]} 24... h5 {[%clk 0:01:55.7]} 25. Nh2
{[%clk 0:02:03.7]} 25... Bc8 {[%clk 0:01:47.4]} 26. Rb1 {[%clk 0:01:51.7]} 26...
Bd7 {[%clk 0:01:44]} 27. Nf3 {[%clk 0:01:42.2]} 27... Rb8 {[%clk 0:01:38.8]} 28.
Ng5+ {[%clk 0:01:39.6]} 28... Kg8 {[%clk 0:01:36.8]} 29. Qd1 {[%clk 0:01:36.2]}
29... f6 {[%clk 0:01:33.9]} 30. Nf3 {[%clk 0:01:34.4]} 30... Ba4 {[%clk
0:01:32.6]} 31. Nh4 {[%clk 0:01:30.7]} 31... Kf7 {[%clk 0:01:27.4]} 32. Bxa4
{[%clk 0:01:23]} 32... Nbxa4 {[%clk 0:01:18]} 33. Rxb8 {[%clk 0:01:23.9]} 33...
Qxb8 {[%clk 0:01:17.7]} 34. Nxg6 {[%clk 0:01:22.3]} 34... Qb2 {[%clk 0:01:14.4]}
35. Qxh5 {[%clk 0:01:04.7]} 35... Qxd2 {[%clk 0:01:10.1]} 36. Nxe5+ {[%clk
0:01:04.9]} 36... Kg8 {[%clk 0:00:48.3]} 37. Qxe8+ {[%clk 0:01:03.5]} 37... Kh7
{[%clk 0:00:47.3]} 38. Qh5+ {[%clk 0:01:00.1]} 38... Kg8 {[%clk 0:00:46.9]} 39.
Qf7+ {[%clk 0:00:52.1]} 39... Kh7 {[%clk 0:00:46.5]} 40. Nf5 {[%clk 0:00:41.8]}
40... Qg5 {[%clk 0:00:30.9]} 41. Ng4 {[%clk 0:00:30.5]} 41... Nd3 {[%clk
0:00:28]} 42. Re3 {[%clk 0:00:26.6]} 42... Ne5 {[%clk 0:00:25.1]} 43. Nxe5
{[%clk 0:00:25.2]} 43... dxe5 {[%clk 0:00:23.9]} 44. Rg3 {[%clk 0:00:24.8]}
44... Qc1+ {[%clk 0:00:19.6]} 45. Kh2 {[%clk 0:00:24.6]} 45... Qh6 {[%clk
0:00:19.9]} 46. Rxg7+ {[%clk 0:00:24.1]} 46... Kh8 {[%clk 0:00:19.2]} 47. Qg8#
{[%clk 0:00:23.6]} 1-0

[Event "*** Titled Tuesday Blitz"]
[Site "Chess.com"]
[Date "2021.04.06"]
[Round "6"]
[White "stanyga"]
[Black "NFork"]
[Result "1-0"]
[WhiteElo "2651"]
[BlackElo "2172"]
[TimeControl "180+1"]
[EndTime "11:08:15 PDT"]
[Termination "stanyga won on time"]

1. d4 {[%clk 0:02:58.8]} 1... d5 {[%clk 0:02:58.3]} 2. c4 {[%clk 0:02:58.3]}
2... dxc4 {[%clk 0:02:58.2]} 3. e3 {[%clk 0:02:57.6]} 3... e5 {[%clk 0:02:57.3]}
4. Bxc4 {[%clk 0:02:55.6]} 4... exd4 {[%clk 0:02:57.2]} 5. Nf3 {[%clk
0:02:54.5]} 5... Bd6 {[%clk 0:02:56.4]} 6. Qxd4 {[%clk 0:02:53.2]} 6... Nf6
{[%clk 0:02:52.1]} 7. Nc3 {[%clk 0:02:50.5]} 7... O-O {[%clk 0:02:49.2]} 8. h3
{[%clk 0:02:49.3]} 8... Nc6 {[%clk 0:02:48.7]} 9. Qh4 {[%clk 0:02:48.8]} 9...
Bf5 {[%clk 0:02:34.1]} 10. O-O {[%clk 0:02:45.3]} 10... Ne4 {[%clk 0:02:17.5]}
11. Nxe4 {[%clk 0:02:20.1]} 11... Qxh4 {[%clk 0:02:16]} 12. Nxh4 {[%clk
0:02:18.4]} 12... Bxe4 {[%clk 0:02:15.9]} 13. f3 {[%clk 0:02:18.4]} 13... Ne5
{[%clk 0:01:41.9]} 14. Be2 {[%clk 0:02:00.1]} 14... Be7 {[%clk 0:00:54.8]} 15.
fxe4 {[%clk 0:01:46.6]} 15... Bxh4 {[%clk 0:00:54.3]} 16. Bd2 {[%clk 0:01:47.5]}
16... Rad8 {[%clk 0:00:40.1]} 17. Bc3 {[%clk 0:01:47.3]} 17... Bg3 {[%clk
0:00:25.4]} 18. Rf5 {[%clk 0:01:23.3]} 18... Ng6 {[%clk 0:00:19]} 19. Bc4 {[%clk
0:01:09.5]} 19... Rd7 {[%clk 0:00:18]} 20. e5 {[%clk 0:01:02.9]} 20... Re7
{[%clk 0:00:16.9]} 21. Bb4 {[%clk 0:01:02.7]} 21... Rfe8 {[%clk 0:00:15.3]} 22.
Bxe7 {[%clk 0:01:01.9]} 22... Rxe7 {[%clk 0:00:15.4]} 23. Rd1 {[%clk 0:00:57.4]}
23... h6 {[%clk 0:00:15]} 24. Rd8+ {[%clk 0:00:39.9]} 24... Kh7 {[%clk
0:00:14.7]} 25. Rxf7 {[%clk 0:00:36.2]} 25... Rxe5 {[%clk 0:00:13.7]} 26. Rf3
{[%clk 0:00:30.6]} 26... Bh4 {[%clk 0:00:12.9]} 27. Rc8 {[%clk 0:00:26.8]} 27...
Re7 {[%clk 0:00:12.3]} 28. Bg8+ {[%clk 0:00:26.1]} 28... Kh8 {[%clk 0:00:11.7]}
29. Bd5+ {[%clk 0:00:23.5]} 29... Kh7 {[%clk 0:00:11.7]} 30. Bxb7 {[%clk
0:00:22.8]} 30... Bf6 {[%clk 0:00:09]} 31. b3 {[%clk 0:00:20.7]} 31... Ne5
{[%clk 0:00:07.8]} 32. Be4+ {[%clk 0:00:20.3]} 32... g6 {[%clk 0:00:07.1]} 33.
Rxf6 {[%clk 0:00:19.6]} 33... Kg7 {[%clk 0:00:06.4]} 34. Rff8 {[%clk 0:00:19.2]}
34... Nd7 {[%clk 0:00:06.3]} 35. Rfe8 {[%clk 0:00:19.2]} 35... Rf7 {[%clk
0:00:05.1]} 36. Rg8+ {[%clk 0:00:19.3]} 1-0

[Event "*** Titled Tuesday Blitz"]
[Site "Chess.com"]
[Date "2021.04.06"]
[Round "6"]
[White "Trankuilizer"]
[Black "Grieve72"]
[Result "0-1"]
[WhiteElo "2584"]
[BlackElo "2502"]
[TimeControl "180+1"]
[EndTime "11:08:16 PDT"]
[Termination "Grieve72 won on time"]

1. e4 {[%clk 0:03:00.9]} 1... c5 {[%clk 0:02:58]} 2. c3 {[%clk 0:03:00.6]} 2...
Nf6 {[%clk 0:02:57.7]} 3. e5 {[%clk 0:03:00.3]} 3... Nd5 {[%clk 0:02:58.3]} 4.
d4 {[%clk 0:03:01.2]} 4... cxd4 {[%clk 0:02:59.2]} 5. Nf3 {[%clk 0:03:01.7]}
5... e6 {[%clk 0:02:59.8]} 6. cxd4 {[%clk 0:03:01.8]} 6... d6 {[%clk 0:03:00.4]}
7. Bc4 {[%clk 0:03:02.2]} 7... Be7 {[%clk 0:03:00.6]} 8. O-O {[%clk 0:03:02.3]}
8... O-O {[%clk 0:03:01.2]} 9. Qe2 {[%clk 0:03:02.9]} 9... b6 {[%clk 0:03:01.3]}
10. Rd1 {[%clk 0:02:57.4]} 10... Bb7 {[%clk 0:03:01.3]} 11. a3 {[%clk
0:02:57.8]} 11... Nd7 {[%clk 0:02:57.5]} 12. Bd3 {[%clk 0:02:40.5]} 12... dxe5
{[%clk 0:02:55.5]} 13. dxe5 {[%clk 0:02:40.4]} 13... Nc5 {[%clk 0:02:21.9]} 14.
Bc2 {[%clk 0:02:39.9]} 14... Qc7 {[%clk 0:02:22.5]} 15. Ng5 {[%clk 0:02:15.7]}
15... Bxg5 {[%clk 0:01:57.2]} 16. Bxg5 {[%clk 0:02:15]} 16... Nd7 {[%clk
0:01:57.8]} 17. f4 {[%clk 0:01:40.3]} 17... Qc5+ {[%clk 0:01:06.4]} 18. Kh1
{[%clk 0:01:39.8]} 18... Ne3 {[%clk 0:00:59.1]} 19. Rc1 {[%clk 0:00:17.8]} 19...
Bxg2+ {[%clk 0:00:27.4]} 20. Kg1 {[%clk 0:00:17.7]} 20... Nxc2+ {[%clk 0:00:28]}
21. Kxg2 {[%clk 0:00:17.6]} 21... Ne3+ {[%clk 0:00:28.5]} 22. Kf3 {[%clk
0:00:13.9]} 22... Qxc1 {[%clk 0:00:28.5]} 23. Qxe3 {[%clk 0:00:14.8]} 23... Qxb2
{[%clk 0:00:26.1]} 24. Qc3 {[%clk 0:00:15.5]} 24... Qxh2 {[%clk 0:00:20.2]} 25.
Qd2 {[%clk 0:00:12]} 25... Qh3+ {[%clk 0:00:13.6]} 26. Kf2 {[%clk 0:00:11.6]}
26... Nc5 {[%clk 0:00:14]} 27. Qe3 {[%clk 0:00:05.4]} 27... Qh2+ {[%clk
0:00:14.2]} 28. Kf1 {[%clk 0:00:04.9]} 28... h6 {[%clk 0:00:13.5]} 29. Be7
{[%clk 0:00:04.3]} 29... Rfc8 {[%clk 0:00:11.3]} 30. Nd2 {[%clk 0:00:03]} 30...
Qh1+ {[%clk 0:00:05.5]} 31. Qg1 {[%clk 0:00:02.8]} 31... Qxg1+ {[%clk
0:00:05.9]} 32. Kxg1 {[%clk 0:00:02.5]} 32... Nd3 {[%clk 0:00:06.2]} 0-1

[Event "*** Titled Tuesday Blitz"]
[Site "Chess.com"]
[Date "2021.04.06"]
[Round "6"]
[White "scandalgod"]
[Black "mitrabhaa"]
[Result "1-0"]
[WhiteElo "2566"]
[BlackElo "2732"]
[TimeControl "180+1"]
[EndTime "11:08:17 PDT"]
[Termination "scandalgod won by resignation"]

1. d4 {[%clk 0:03:00.9]} 1... Nf6 {[%clk 0:02:59.5]} 2. c4 {[%clk 0:03:01]} 2...
c5 {[%clk 0:02:59.9]} 3. d5 {[%clk 0:03:00.8]} 3... b5 {[%clk 0:03:00]} 4. cxb5
{[%clk 0:03:01.1]} 4... a6 {[%clk 0:03:00.2]} 5. Nc3 {[%clk 0:03:00.4]} 5...
axb5 {[%clk 0:03:00.2]} 6. e4 {[%clk 0:02:59.9]} 6... b4 {[%clk 0:03:00.7]} 7.
Nb5 {[%clk 0:02:58.5]} 7... d6 {[%clk 0:03:01.3]} 8. Bf4 {[%clk 0:02:44.1]} 8...
Nbd7 {[%clk 0:02:52.9]} 9. Nf3 {[%clk 0:02:40.3]} 9... Nh5 {[%clk 0:02:44.1]}
10. Bg5 {[%clk 0:02:35.9]} 10... Qb6 {[%clk 0:02:43.6]} 11. Nd2 {[%clk
0:02:31.5]} 11... g6 {[%clk 0:02:43.2]} 12. Nc4 {[%clk 0:02:27.8]} 12... Qb8
{[%clk 0:02:43.4]} 13. a4 {[%clk 0:02:24.8]} 13... bxa3 {[%clk 0:02:40.5]} 14.
bxa3 {[%clk 0:02:15.8]} 14... Ba6 {[%clk 0:02:40.3]} 15. Rb1 {[%clk 0:02:12.2]}
15... Bxb5 {[%clk 0:02:38.9]} 16. Rxb5 {[%clk 0:02:11.5]} 16... Qa7 {[%clk
0:02:39.3]} 17. Qb3 {[%clk 0:02:08.4]} 17... Rb8 {[%clk 0:02:21.8]} 18. Be2
{[%clk 0:01:46.6]} 18... h6 {[%clk 0:02:09.1]} 19. Bd2 {[%clk 0:01:33]} 19...
Nhf6 {[%clk 0:02:04.5]} 20. Rxb8+ {[%clk 0:01:26.2]} 20... Nxb8 {[%clk
0:01:58.9]} 21. Qb5+ {[%clk 0:01:13.6]} 21... Nbd7 {[%clk 0:01:58.2]} 22. Qc6
{[%clk 0:01:10.9]} 22... Qb8 {[%clk 0:01:54.8]} 23. O-O {[%clk 0:01:06.5]} 23...
Bg7 {[%clk 0:01:51.7]} 24. e5 {[%clk 0:00:59.5]} 24... dxe5 {[%clk 0:01:50]} 25.
Nxe5 {[%clk 0:00:57.8]} 25... O-O {[%clk 0:00:51]} 26. Nxd7 {[%clk 0:00:57.1]}
26... Nxd7 {[%clk 0:00:50.7]} 27. Qxd7 {[%clk 0:00:56.5]} 27... Qb2 {[%clk
0:00:51.3]} 28. Rd1 {[%clk 0:00:48.2]} 28... Qc2 {[%clk 0:00:47.2]} 29. Qxe7
{[%clk 0:00:39.6]} 29... Rb8 {[%clk 0:00:46]} 30. d6 {[%clk 0:00:31.3]} 30...
Bf8 {[%clk 0:00:29.4]} 31. Qc7 {[%clk 0:00:29.1]} 31... Qb3 {[%clk 0:00:17.9]}
32. d7 {[%clk 0:00:26.3]} 32... Be7 {[%clk 0:00:18.4]} 33. Be3 {[%clk
0:00:20.5]} 33... Bd8 {[%clk 0:00:15.7]} 34. Qxc5 {[%clk 0:00:18.4]} 34... Qa2
{[%clk 0:00:16.1]} 35. Qd6 {[%clk 0:00:17.1]} 35... Rb2 {[%clk 0:00:14.4]} 36.
Bf1 {[%clk 0:00:16.2]} 36... Rc2 {[%clk 0:00:11.5]} 37. Bc5 {[%clk 0:00:16.1]}
37... Rxc5 {[%clk 0:00:09.6]} 38. Qxc5 {[%clk 0:00:16]} 38... Qb3 {[%clk
0:00:10.5]} 39. Qc8 {[%clk 0:00:14.7]} 1-0

[Event "*** Titled Tuesday Blitz"]
[Site "Chess.com"]
[Date "2021.04.06"]
[Round "6"]
[White "shnitez"]
[Black "Leonid_Starozhilov"]
[Result "0-1"]
[WhiteElo "2500"]
[BlackElo "2730"]
[TimeControl "180+1"]
[EndTime "11:08:18 PDT"]
[Termination "Leonid_Starozhilov won on time"]

1. c4 {[%clk 0:03:00.9]} 1... Nf6 {[%clk 0:02:59.8]} 2. Nc3 {[%clk 0:03:00.5]}
2... g6 {[%clk 0:03:00.3]} 3. e4 {[%clk 0:02:59.7]} 3... d6 {[%clk 0:03:00.9]}
4. d4 {[%clk 0:03:00]} 4... Bg7 {[%clk 0:03:01.2]} 5. Nf3 {[%clk 0:03:00.6]}
5... Bg4 {[%clk 0:03:01.3]} 6. Be2 {[%clk 0:03:01.3]} 6... O-O {[%clk
0:03:01.4]} 7. O-O {[%clk 0:03:01.2]} 7... a6 {[%clk 0:03:00.9]} 8. Be3 {[%clk
0:03:00.6]} 8... Nfd7 {[%clk 0:03:00.7]} 9. Nd2 {[%clk 0:02:59.8]} 9... Bxe2
{[%clk 0:03:00.5]} 10. Qxe2 {[%clk 0:03:00.7]} 10... Nc6 {[%clk 0:03:00.5]} 11.
Nb3 {[%clk 0:02:52.6]} 11... a5 {[%clk 0:02:36.5]} 12. d5 {[%clk 0:02:52]} 12...
Nb4 {[%clk 0:02:33.5]} 13. Qd2 {[%clk 0:02:12.6]} 13... a4 {[%clk 0:02:16.8]}
14. Nd4 {[%clk 0:01:55.9]} 14... a3 {[%clk 0:01:53.8]} 15. b3 {[%clk 0:01:52.7]}
15... c6 {[%clk 0:01:54.2]} 16. Rad1 {[%clk 0:01:25.1]} 16... Nc5 {[%clk
0:01:45.2]} 17. f3 {[%clk 0:01:18.4]} 17... Qa5 {[%clk 0:01:40.8]} 18. Kh1
{[%clk 0:01:02]} 18... Rfe8 {[%clk 0:01:36.8]} 19. Nde2 {[%clk 0:00:52]} 19...
Rac8 {[%clk 0:00:37.8]} 20. Bd4 {[%clk 0:00:49.8]} 20... Bf8 {[%clk 0:00:32.7]}
21. Ng3 {[%clk 0:00:46]} 21... e6 {[%clk 0:00:32.8]} 22. dxe6 {[%clk 0:00:33.8]}
22... Rxe6 {[%clk 0:00:29.6]} 23. f4 {[%clk 0:00:29.7]} 23... Bh6 {[%clk
0:00:22.1]} 24. Qe2 {[%clk 0:00:18.5]} 24... Rce8 {[%clk 0:00:17.8]} 25. f5
{[%clk 0:00:17.9]} 25... R6e7 {[%clk 0:00:17.9]} 26. Qg4 {[%clk 0:00:13.2]}
26... Nc2 {[%clk 0:00:13.9]} 27. fxg6 {[%clk 0:00:06.6]} 27... hxg6 {[%clk
0:00:14.1]} 28. Bf6 {[%clk 0:00:04.5]} 28... Ne3 {[%clk 0:00:12.8]} 29. Qh4
{[%clk 0:00:04.9]} 29... Bg7 {[%clk 0:00:11.6]} 30. Bxe7 {[%clk 0:00:04]} 30...
Nxf1 {[%clk 0:00:10.1]} 31. Rxf1 {[%clk 0:00:03.4]} 31... Qxc3 {[%clk
0:00:09.8]} 32. Bxd6 {[%clk 0:00:03.6]} 32... Ne6 {[%clk 0:00:08.7]} 33. Bf4
{[%clk 0:00:02.7]} 33... Qd3 {[%clk 0:00:07.8]} 34. Bg5 {[%clk 0:00:02.3]} 34...
Nd4 {[%clk 0:00:05.8]} 35. Bf6 {[%clk 0:00:02.2]} 35... Ne2 {[%clk 0:00:06.1]}
0-1

[Event "*** Titled Tuesday Blitz"]
[Site "Chess.com"]
[Date "2021.04.06"]
[Round "6"]
[White "Hasangatin_Ramil"]
[Black "fyall777"]
[Result "1-0"]
[WhiteElo "2586"]
[BlackElo "2440"]
[TimeControl "180+1"]
[EndTime "11:08:18 PDT"]
[Termination "Hasangatin_Ramil won on time"]

1. e4 {[%clk 0:03:00.9]} 1... Nf6 {[%clk 0:03:00.9]} 2. d3 {[%clk 0:03:00]} 2...
e5 {[%clk 0:02:59.8]} 3. Nf3 {[%clk 0:02:59.5]} 3... Nc6 {[%clk 0:02:58.9]} 4.
g3 {[%clk 0:02:59.8]} 4... d5 {[%clk 0:02:59.2]} 5. Nbd2 {[%clk 0:02:58.3]} 5...
Bc5 {[%clk 0:02:30.9]} 6. Bg2 {[%clk 0:02:57.4]} 6... O-O {[%clk 0:02:28.2]} 7.
O-O {[%clk 0:02:56]} 7... a5 {[%clk 0:02:27.9]} 8. c3 {[%clk 0:02:55.8]} 8...
dxe4 {[%clk 0:02:27.4]} 9. Nxe4 {[%clk 0:02:54.8]} 9... a4 {[%clk 0:02:27.8]}
10. Nxc5 {[%clk 0:02:47]} 10... Re8 {[%clk 0:02:20.3]} 11. Nxa4 {[%clk
0:02:40.7]} 11... e4 {[%clk 0:02:17.9]} 12. Nd4 {[%clk 0:02:16]} 12... Nxd4
{[%clk 0:02:14.2]} 13. cxd4 {[%clk 0:02:15.8]} 13... Qxd4 {[%clk 0:02:13.8]} 14.
Nc3 {[%clk 0:02:10.6]} 14... exd3 {[%clk 0:02:08.1]} 15. Be3 {[%clk 0:02:09]}
15... Qd6 {[%clk 0:01:46]} 16. Bf4 {[%clk 0:02:04]} 16... Qd4 {[%clk 0:01:42.2]}
17. Nb5 {[%clk 0:01:56.9]} 17... Qc5 {[%clk 0:01:27.7]} 18. Nxc7 {[%clk
0:01:55.1]} 18... Bg4 {[%clk 0:01:26.3]} 19. Qb3 {[%clk 0:01:47.2]} 19... Be2
{[%clk 0:01:19.3]} 20. Nxa8 {[%clk 0:01:38.6]} 20... Rxa8 {[%clk 0:01:19.1]} 21.
Rfc1 {[%clk 0:01:31.4]} 21... Qf5 {[%clk 0:01:09.9]} 22. Qxb7 {[%clk 0:01:16]}
22... Re8 {[%clk 0:01:08.5]} 23. a4 {[%clk 0:01:09.6]} 23... g5 {[%clk 0:01:05]}
24. Be3 {[%clk 0:00:57.6]} 24... Ng4 {[%clk 0:00:59.3]} 25. Qb5 {[%clk
0:00:47.8]} 25... Re5 {[%clk 0:00:46.7]} 26. Qb8+ {[%clk 0:00:46.9]} 26... Kg7
{[%clk 0:00:46.5]} 27. Bd4 {[%clk 0:00:47.1]} 27... d2 {[%clk 0:00:45.2]} 28.
Rf1 {[%clk 0:00:32.9]} 28... Bxf1 {[%clk 0:00:39.1]} 29. Rxf1 {[%clk 0:00:30.6]}
29... f6 {[%clk 0:00:37.4]} 30. Bxe5 {[%clk 0:00:29.8]} 30... Nxe5 {[%clk
0:00:37.5]} 31. Qb3 {[%clk 0:00:22.8]} 31... Nd3 {[%clk 0:00:18.5]} 32. Qc3
{[%clk 0:00:18.9]} 32... d1=Q {[%clk 0:00:14.5]} 33. Rxd1 {[%clk 0:00:16.6]}
33... Qxf2+ {[%clk 0:00:15.1]} 34. Kh1 {[%clk 0:00:17]} 34... Ne5 {[%clk
0:00:06.4]} 35. Rf1 {[%clk 0:00:16.2]} 35... Qe2 {[%clk 0:00:05.5]} 36. h3
{[%clk 0:00:14.3]} 1-0

[Event "*** Titled Tuesday Blitz"]
[Site "Chess.com"]
[Date "2021.04.06"]
[Round "6"]
[White "Agibileg"]
[Black "OlifantCZ"]
[Result "1-0"]
[WhiteElo "2562"]
[BlackElo "2300"]
[TimeControl "180+1"]
[EndTime "11:08:18 PDT"]
[Termination "Agibileg won by resignation"]

1. d4 {[%clk 0:03:00.9]} 1... Nf6 {[%clk 0:02:59.7]} 2. c4 {[%clk 0:02:59.7]}
2... g6 {[%clk 0:03:00]} 3. Nc3 {[%clk 0:02:59.9]} 3... Bg7 {[%clk 0:03:00.3]}
4. e4 {[%clk 0:03:00.1]} 4... O-O {[%clk 0:03:00.4]} 5. Be2 {[%clk 0:03:00.4]}
5... c5 {[%clk 0:02:59.9]} 6. d5 {[%clk 0:02:58.1]} 6... d6 {[%clk 0:02:59]} 7.
Nf3 {[%clk 0:02:57.7]} 7... e6 {[%clk 0:02:59.5]} 8. O-O {[%clk 0:02:58.2]} 8...
exd5 {[%clk 0:02:59.8]} 9. exd5 {[%clk 0:02:59.1]} 9... Bg4 {[%clk 0:02:53.5]}
10. Bf4 {[%clk 0:02:53]} 10... Na6 {[%clk 0:02:47]} 11. h3 {[%clk 0:02:51.7]}
11... Bxf3 {[%clk 0:02:46.6]} 12. Bxf3 {[%clk 0:02:52.6]} 12... Nc7 {[%clk
0:02:46.3]} 13. Re1 {[%clk 0:02:49.1]} 13... h6 {[%clk 0:02:38.2]} 14. Qd2
{[%clk 0:02:48.1]} 14... Kh7 {[%clk 0:02:37.7]} 15. Re2 {[%clk 0:02:44.1]} 15...
Qd7 {[%clk 0:02:37.7]} 16. Rae1 {[%clk 0:02:42.1]} 16... Rae8 {[%clk 0:02:37.9]}
17. b3 {[%clk 0:02:29.5]} 17... Rxe2 {[%clk 0:02:35.7]} 18. Rxe2 {[%clk
0:02:30.4]} 18... Re8 {[%clk 0:02:35.4]} 19. Rxe8 {[%clk 0:02:23.6]} 19... Ncxe8
{[%clk 0:02:34.5]} 20. Qe3 {[%clk 0:02:19.4]} 20... a6 {[%clk 0:02:33.4]} 21.
Ne4 {[%clk 0:01:37.8]} 21... Nxe4 {[%clk 0:02:30.1]} 22. Qxe4 {[%clk 0:01:38.6]}
22... Nf6 {[%clk 0:02:23.3]} 23. Qe3 {[%clk 0:01:38.5]} 23... b5 {[%clk
0:02:21.3]} 24. Qe1 {[%clk 0:01:28.7]} 24... b4 {[%clk 0:02:20.8]} 25. Qe3
{[%clk 0:01:16.1]} 25... a5 {[%clk 0:02:20.5]} 26. Be2 {[%clk 0:01:13.4]} 26...
Bf8 {[%clk 0:02:14.9]} 27. Bd3 {[%clk 0:01:13.4]} 27... a4 {[%clk 0:02:12.3]}
28. Kh2 {[%clk 0:01:10.8]} 28... a3 {[%clk 0:02:02]} 29. Kg1 {[%clk 0:01:08.8]}
29... Qe7 {[%clk 0:02:01.3]} 30. Bxh6 {[%clk 0:01:07.4]} 30... Qxe3 {[%clk
0:01:53.6]} 31. Bxe3 {[%clk 0:01:07.6]} 31... Nd7 {[%clk 0:01:52.2]} 32. Bf4
{[%clk 0:01:05.5]} 32... Ne5 {[%clk 0:01:41.8]} 33. Bxe5 {[%clk 0:01:04.8]}
33... dxe5 {[%clk 0:01:41.3]} 34. g4 {[%clk 0:01:00.5]} 34... f6 {[%clk
0:01:38.5]} 35. Kg2 {[%clk 0:00:53.9]} 35... Kg7 {[%clk 0:01:35.8]} 36. h4
{[%clk 0:00:52.2]} 36... Kf7 {[%clk 0:01:34.7]} 37. Kf3 {[%clk 0:00:51.2]} 37...
Bh6 {[%clk 0:01:33.4]} 38. h5 {[%clk 0:00:47.8]} 38... gxh5 {[%clk 0:01:26.4]}
39. gxh5 {[%clk 0:00:48.7]} 39... Bd2 {[%clk 0:01:14.4]} 40. Bg6+ {[%clk
0:00:47.4]} 40... Ke7 {[%clk 0:01:12.6]} 41. Ke4 {[%clk 0:00:46.8]} 41... Be1
{[%clk 0:01:09.9]} 42. h6 {[%clk 0:00:42.7]} 42... Kf8 {[%clk 0:00:53.9]} 43. d6
{[%clk 0:00:40.1]} 43... Bxf2 {[%clk 0:00:33.9]} 44. d7 {[%clk 0:00:34.8]} 44...
f5+ {[%clk 0:00:33.9]} 45. Bxf5 {[%clk 0:00:32.4]} 45... Bh4 {[%clk 0:00:32.2]}
46. h7 {[%clk 0:00:31.4]} 46... Kg7 {[%clk 0:00:31.2]} 47. Kd5 {[%clk
0:00:22.9]} 47... Be7 {[%clk 0:00:29.7]} 48. Ke6 {[%clk 0:00:22.1]} 48... Bd8
{[%clk 0:00:29.8]} 49. Kd6 {[%clk 0:00:22]} 1-0

[Event "*** Titled Tuesday Blitz"]
[Site "Chess.com"]
[Date "2021.04.06"]
[Round "6"]
[White "A-Fier"]
[Black "Fandorine"]
[Result "0-1"]
[WhiteElo "2716"]
[BlackElo "2900"]
[TimeControl "180+1"]
[EndTime "11:08:24 PDT"]
[Termination "Fandorine won by checkmate"]

1. d4 {[%clk 0:03:00.9]} 1... Nf6 {[%clk 0:03:00]} 2. c4 {[%clk 0:03:01.2]} 2...
g6 {[%clk 0:03:00.2]} 3. g3 {[%clk 0:02:59.8]} 3... Bg7 {[%clk 0:03:00.5]} 4.
Bg2 {[%clk 0:03:00.4]} 4... O-O {[%clk 0:03:01.4]} 5. Nc3 {[%clk 0:02:59.4]}
5... d6 {[%clk 0:03:01.5]} 6. Nf3 {[%clk 0:03:00]} 6... Nbd7 {[%clk 0:03:01.4]}
7. O-O {[%clk 0:02:59.8]} 7... e5 {[%clk 0:03:01.5]} 8. e4 {[%clk 0:03:00.2]}
8... exd4 {[%clk 0:03:01.3]} 9. Nxd4 {[%clk 0:03:00.1]} 9... Nc5 {[%clk
0:03:02]} 10. Re1 {[%clk 0:03:00]} 10... Re8 {[%clk 0:02:50.3]} 11. h3 {[%clk
0:02:59.2]} 11... Bd7 {[%clk 0:02:50.5]} 12. Kh2 {[%clk 0:02:50.4]} 12... h5
{[%clk 0:02:46.3]} 13. b3 {[%clk 0:02:13]} 13... a5 {[%clk 0:02:36.2]} 14. Bb2
{[%clk 0:02:07.9]} 14... h4 {[%clk 0:02:27.9]} 15. g4 {[%clk 0:02:07.8]} 15...
g5 {[%clk 0:02:22.4]} 16. Qd2 {[%clk 0:01:57.4]} 16... Nh7 {[%clk 0:02:22.3]}
17. Kg1 {[%clk 0:01:52.7]} 17... a4 {[%clk 0:02:03.7]} 18. b4 {[%clk 0:01:48.4]}
18... a3 {[%clk 0:02:03.6]} 19. Bc1 {[%clk 0:01:36.4]} 19... Ne6 {[%clk
0:02:03.5]} 20. Nf5 {[%clk 0:01:36.6]} 20... Be5 {[%clk 0:01:59.4]} 21. Rb1
{[%clk 0:01:30.2]} 21... Nf4 {[%clk 0:01:58.4]} 22. Qc2 {[%clk 0:01:26.9]} 22...
c6 {[%clk 0:01:44.4]} 23. Ne2 {[%clk 0:01:21.8]} 23... Nxg2 {[%clk 0:01:32.9]}
24. Kxg2 {[%clk 0:01:22.7]} 24... Bxf5 {[%clk 0:01:30.5]} 25. exf5 {[%clk
0:01:16.1]} 25... d5 {[%clk 0:01:30.5]} 26. Be3 {[%clk 0:01:11.1]} 26... d4
{[%clk 0:01:01.8]} 27. Rbd1 {[%clk 0:01:10.9]} 27... dxe3 {[%clk 0:00:55.4]} 28.
Rxd8 {[%clk 0:01:10.3]} 28... Raxd8 {[%clk 0:00:56]} 29. fxe3 {[%clk 0:00:52.1]}
29... Nf6 {[%clk 0:00:55.8]} 30. Ng1 {[%clk 0:00:52.7]} 30... Bg3 {[%clk
0:00:55]} 31. Re2 {[%clk 0:00:48.8]} 31... Kg7 {[%clk 0:00:21.3]} 32. e4 {[%clk
0:00:48.1]} 32... Nd7 {[%clk 0:00:19]} 33. Nf3 {[%clk 0:00:48.3]} 33... Bf4
{[%clk 0:00:17.3]} 34. Qc3+ {[%clk 0:00:45.3]} 34... Ne5 {[%clk 0:00:17.7]} 35.
Qxa3 {[%clk 0:00:37.8]} 35... Rd3 {[%clk 0:00:16.3]} 36. Qa7 {[%clk 0:00:21.3]}
36... Rxf3 {[%clk 0:00:16]} 37. Qxb7 {[%clk 0:00:22]} 37... Rg3+ {[%clk
0:00:16]} 38. Kf1 {[%clk 0:00:22.5]} 38... Rd8 {[%clk 0:00:15.8]} 39. Qb6 {[%clk
0:00:16]} 39... Rf3+ {[%clk 0:00:14.7]} 40. Kg2 {[%clk 0:00:15.7]} 40... Rd1
{[%clk 0:00:10.4]} 41. b5 {[%clk 0:00:13.5]} 41... Rg3+ {[%clk 0:00:10.7]} 42.
Kh2 {[%clk 0:00:11.3]} 42... Rxg4# {[%clk 0:00:10.7]} 0-1